bitfinex/quotes_SOLUSD_20250917
["timestamp","ask_amount","ask_price","bid_price","bid_amount"]
[1758131945730,4.28210586,236.85,236.73,13.59559401]
[1758131946341,4.28210586,236.85,236.72,14.78540046]
[1758131947631,4.28210586,236.85,236.72,10.56100033]
[1758131948836,0.06,236.85,236.73,13.59559401]
[1758131949246,0.06,236.87,236.73,13.59559401]
[1758131949450,58.93872188,236.97,236.73,13.59559401]
[1758131949451,26.0,236.97,236.73,13.59559401]
[1758131949652,132.8,237.43,236.73,13.59559401]
[1758131949653,21.55700125,237.32,236.88,20.0]
[1758131949835,3.39576001,237.28,236.92,26.0]
[1758131950033,3.39576001,237.28,237.0,26.0]
[1758131950034,0.02,237.28,237.0,26.0]
[1758131950249,4.21460783,237.27,237.0,39.59559401]
[1758131950426,0.02,237.28,237.11,26.0]
[1758131950827,0.02,237.28,237.06,20.0]
[1758131950828,0.02,237.28,237.15,26.0]
[1758131951352,0.02,237.28,237.01,9.43719044]
[1758131951529,0.02,237.28,237.14,13.59559401]
[1758131951731,0.02,237.28,237.18,13.59559401]
[1758131951922,0.02,237.28,237.12,10.54311171]
[1758131952118,0.02,237.28,237.16,13.59559401]
[1758131952445,0.02,237.28,237.12,4.21715708]
[1758131952627,0.02,237.28,237.16,26.0]
[1758131952946,0.02,237.28,237.08,12.66811646]
[1758131953148,0.02,237.28,237.09,4.21770923]
[1758131953332,26.0,237.26,237.01,12.67079171]
[1758131953540,14.75734704,237.17,237.01,12.67079171]
[1758131953723,4.21638487,237.17,237.01,12.67079171]
[1758131953928,4.21638487,237.17,236.95,26.0]
[1758131954136,26.0,237.19,236.99,26.0]
[1758131954433,26.0,237.19,236.92,20.0]
[1758131954434,26.0,237.19,237.0,13.59559401]
[1758131954626,4.21525577,237.24,236.94,13.59559401]
[1758131954833,4.23447284,237.28,237.01,13.59559401]
[1758131955031,13.59559401,237.27,237.08,26.0]
[1758131955243,4.23447284,237.28,237.08,26.0]
[1758131955448,0.02,237.28,237.08,26.0]
[1758131955627,26.0,237.27,237.1,26.0]
[1758131955930,4.23448448,237.28,237.11,0.42174518]
[1758131955931,0.02,237.28,237.11,0.42174518]
[1758131956131,0.02,237.28,237.12,26.0]
[1758131956549,4.23450838,237.28,237.12,26.0]
[1758131956851,13.59559401,237.27,237.1,26.0]
[1758131957250,13.59559401,237.27,237.11,26.0]
[1758131957629,30.21531846,237.23,237.06,4.21818893]
[1758131958050,30.21531846,237.23,237.07,26.0]
[1758131958259,30.21531846,237.23,237.06,4.21818893]
[1758131958446,30.21531846,237.23,237.07,26.0]
[1758131958862,40.75361462,237.23,237.07,26.0]
[1758131959365,13.59559401,237.22,237.06,26.0]
[1758131960163,40.75361462,237.23,237.05,4.21845169]
[1758131960334,40.75361462,237.23,237.08,26.0]
[1758131960742,13.59559401,237.22,237.08,26.0]
[1758131960958,13.59559401,237.22,237.03,30.2187484]
[1758131961160,26.0,237.11,236.83,21.11196853]
[1758131961450,26.0,237.2,236.87,16.90162102]
[1758131961768,26.0,237.16,236.91,39.59559401]
[1758131961928,13.59559401,237.22,236.91,40.01769522]
[1758131962128,26.0,237.19,236.91,40.01769522]
[1758131962328,26.0,237.15,236.91,39.59559401]
[1758131962567,26.0,237.15,236.9,26.0]
[1758131962746,14.75921396,237.14,236.91,14.77354268]
[1758131963069,26.0,237.1,236.91,4.22101219]
[1758131963363,13.59559401,237.09,236.88,4.22140302]
[1758131963665,26.0,237.06,236.88,4.22140302]
[1758131964032,26.0,237.06,236.88,30.22140302]
[1758131964367,26.0,237.06,236.89,13.59559401]
[1758131964732,26.0,237.1,236.92,26.0]
[1758131965064,14.76232653,237.09,236.92,30.22072832]
[1758131965229,13.59559401,237.08,236.92,26.0]
[1758131965431,13.59559401,237.08,236.87,0.03]
[1758131965432,43.99559401,237.08,236.87,0.03]
[1758131965967,43.99559401,237.08,236.9,26.0]
[1758131966549,43.99559401,237.08,236.87,0.03]
[1758131966550,26.0,237.05,236.87,0.03]
[1758131966842,26.0,237.01,236.87,0.03]
[1758131968854,14.76793248,237.0,236.87,0.03]
[1758131969464,35.86497889,237.0,236.87,0.03]
[1758131969646,4.21940928,237.0,236.87,0.03]
[1758131970450,13.59559401,237.07,236.87,0.03]
[1758131970652,14.76419471,237.06,236.87,0.03]
[1758131970968,13.59559401,237.05,236.87,0.03]
[1758131972951,14.76544042,237.04,236.87,0.03]
[1758131973451,132.8,237.04,236.87,0.03]
[1758131973869,13.59559401,237.03,236.87,0.03]
[1758131974873,132.8,237.04,236.87,0.03]
[1758131976251,132.8,237.03,236.87,0.03]
[1758131977285,12.68,237.02,236.87,0.03]
[1758131977781,145.48,237.01,236.87,0.03]
[1758131977973,145.48,237.0,236.87,0.03]
[1758131978562,145.48,237.0,236.84,0.03]
[1758131978563,12.68,236.98,236.84,0.03]
[1758131979667,132.8,236.99,236.84,0.03]
[1758131979883,145.48,236.99,236.84,0.03]
[1758131980788,12.68,236.99,236.84,0.03]
[1758131980967,12.68,236.99,236.82,0.03]
[1758131981380,12.68,237.01,236.82,0.03]
[1758131981566,12.68,236.99,236.82,0.03]
[1758131981874,12.68,237.01,236.82,0.03]
[1758131982284,30.4,237.08,236.82,0.03]
[1758131982471,3.3737092,237.02,236.82,0.03]
[1758131982791,16.0537092,237.02,236.84,0.03]
[1758131983161,16.0537092,237.02,236.68,0.03]
[1758131983384,12.68,236.92,236.68,0.03]
[1758131983761,20.0,236.94,236.68,0.03]
[1758131983958,32.68,236.94,236.79,0.03]
[1758131984158,3.33440516,237.02,236.79,0.03]
[1758131984488,20.0,236.97,236.68,0.03]
[1758131984689,20.0,236.91,236.68,0.03]
[1758131984889,12.68,236.92,236.68,0.03]
[1758131985091,20.0,236.83,236.65,0.03]
[1758131985266,20.0,236.83,236.4,20.21570754]
[1758131985267,12.68,236.82,236.4,0.21570754]
[1758131985467,12.68,236.82,236.35,0.21839806]
[1758131985468,20.0,236.68,236.35,0.21839806]
[1758131985778,20.0,236.66,236.34,0.03]
[1758131986161,20.0,236.62,236.34,0.03]
[1758131986366,12.68,236.61,236.34,0.03]
[1758131986782,12.68,236.61,236.36,20.0]
[1758131987090,20.0,236.52,236.31,0.03]
[1758131987267,21.81390042,236.66,236.11,0.72487935]
[1758131987268,20.0,236.5,236.11,0.72487935]
[1758131987462,20.0,236.28,236.12,0.42351346]
[1758131987668,20.0,236.22,236.12,0.42351346]
[1758131987868,20.0,236.45,235.93,20.0]
[1758131988089,2.1962,236.31,235.95,20.0]
[1758131988303,20.0,236.29,235.74,0.20881113]
[1758131988478,20.0,236.29,235.73,14.52799797]
[1758131988479,20.0,236.25,235.91,12.71321115]
[1758131988791,2.1962,236.31,235.76,0.20656356]
[1758131988792,20.0,236.21,235.77,0.42414217]
[1758131988980,0.42349553,236.2,235.77,0.42414217]
[1758131989165,0.42349553,236.2,235.78,26.03587936]
[1758131989373,0.42349553,236.3,235.79,0.42410619]
[1758131989590,20.42349553,236.3,235.8,3.67280136]
[1758131989779,20.0,236.25,235.81,0.42407022]
[1758131990170,20.0,236.18,235.81,0.42407022]
[1758131990370,20.0,236.15,235.72,0.62474924]
[1758131990572,0.42349553,236.14,235.74,0.20881113]
[1758131990870,20.0,236.1,235.7,0.20581157]
[1758131991072,20.0,235.89,235.7,0.20581157]
[1758131991275,0.42349553,235.88,235.7,0.20581157]
[1758131991593,0.42349553,235.88,235.49,13.04276937]
[1758131991594,20.0,236.03,235.63,12.13736673]
[1758131991773,20.0,236.0,235.71,0.42425013]
[1758131991969,20.0,235.94,235.54,3.67280136]
[1758131992172,20.0,235.77,235.51,22.46291062]
[1758131992399,20.0,235.65,235.25,17.5767844]
[1758131992600,20.0,235.61,235.52,12.74074703]
[1758131992810,20.0,235.54,235.2,22.17631047]
[1758131993008,0.42349553,235.53,235.2,22.17631047]
[1758131993185,0.42349553,235.59,235.26,12.75239107]
[1758131993376,0.42349553,235.59,235.2,22.17631047]
[1758131993570,0.42349553,235.69,235.22,3.67280136]
[1758131993775,0.42349553,235.68,235.23,22.73240939]
[1758131993973,2.0,235.51,235.23,14.95311381]
[1758131994181,20.0,235.49,235.23,0.42511584]
[1758131994500,20.0,235.49,235.06,21.3723401]
[1758131994501,20.0,235.38,234.92,21.87870767]
[1758131994708,20.0,235.36,235.2,12.75130701]
[1758131994872,20.0,235.23,234.67,0.42613031]
[1758131995074,20.0,235.13,234.68,2.57821585]
[1758131995297,20.0,235.07,235.05,12.75672918]
[1758131995597,20.0,234.94,234.38,33.47203886]
[1758131995808,20.0,234.94,234.22,4.26947547]
[1758131995809,20.0,234.74,234.69,11.75672918]
[1758131996092,20.0,234.72,234.1,4.27161187]
[1758131996272,77.37135613,234.93,234.35,12.7929042]
[1758131996273,20.0,234.6,234.35,12.7929042]
[1758131996476,0.6,234.79,233.85,21.53428125]
[1758131996477,20.0,234.49,233.85,21.53428125]
[1758131996798,20.0,234.49,234.04,12.79290421]
[1758131996799,20.0,234.46,234.04,12.79290421]
[1758131996970,6.71132854,234.49,234.04,12.79290421]
[1758131996971,20.0,234.32,234.04,12.79290421]
[1758131997169,20.0,234.32,233.75,25.69790331]
[1758131997170,20.0,234.27,233.75,21.52256918]
[1758131997390,20.0,234.13,233.71,21.61725265]
[1758131997603,20.0,233.98,233.97,12.80792384]
[1758131997805,20.0,233.98,233.36,21.17124651]
[1758131997806,20.0,233.89,233.36,4.15812978]
[1758131997990,20.0,233.76,233.75,12.81448892]
[1758131998172,20.0,233.49,233.27,13.802]
[1758131998376,20.0,233.23,233.02,3.03364921]
[1758131998593,20.0,233.2,233.02,3.03364921]
[1758131998915,20.0,233.2,231.49,0.40058587]
[1758131998916,15.70193521,233.12,232.55,4.29806479]
[1758131999114,15.70193521,233.12,232.11,0.2]
[1758131999115,15.70193521,233.33,232.81,7.48116533]
[1758131999278,15.70193521,233.09,232.81,7.48116533]
[1758131999485,15.70193521,232.98,232.81,7.48116533]
[1758131999790,15.70193521,233.17,233.12,4.49133825]
[1758132000114,15.70193521,233.21,232.81,7.48116533]
[1758132000414,15.70193521,232.98,232.56,4.29806479]
[1758132000575,15.70193521,233.09,232.56,4.29806479]
[1758132000774,102.48261784,233.2,232.68,4.29806479]
[1758132000974,102.48261784,233.2,232.55,13.56730415]
[1758132001174,102.48261784,233.2,232.81,4.29806479]
[1758132001393,10.69487544,233.76,232.53,3.53404782]
[1758132001394,21.70028775,233.48,232.96,4.29806479]
[1758132001588,18.01214682,233.6,232.94,4.29806479]
[1758132001791,18.01214682,233.6,233.1,4.29806479]
[1758132001972,3.84568833,233.59,233.2,2.23947688]
[1758132002173,15.70193521,233.51,233.2,2.23947688]
[1758132002399,11.35211732,233.59,233.12,6.61393599]
[1758132002400,14.98193521,233.42,233.12,6.61393599]
[1758132002593,18.80700853,233.59,233.17,6.49232505]
[1758132002797,14.98193521,233.82,233.25,5.01806479]
[1758132003007,14.98193521,233.82,232.76,0.03]
[1758132003008,7.27333921,233.63,233.04,5.01806479]
[1758132003171,6.49232505,233.58,233.06,5.01806479]
[1758132003375,16.42193521,233.3,232.88,3.57806479]
[1758132003594,16.42193521,233.3,232.76,0.03]
[1758132003595,20.0,233.34,232.52,4.30070531]
[1758132003810,20.0,233.16,232.39,10.4755624]
[1758132004114,20.0,233.17,232.89,3.57806479]
[1758132004279,20.0,233.07,232.22,558.73420748]
[1758132004606,20.0,232.88,232.28,10.4755624]
[1758132004817,29.92431802,233.06,232.22,558.73420748]
[1758132004818,20.0,232.74,232.22,558.73420748]
[1758132004981,5.39820306,232.73,232.22,558.73420748]
[1758132005178,3.56023399,232.93,232.22,558.73420748]
[1758132005179,17.12,232.76,232.24,2.88]
[1758132005503,17.12,233.1,232.54,2.88]
[1758132005698,17.12,232.93,232.32,13.66836827]
[1758132006001,17.12,233.22,232.5,2.88]
[1758132006207,2.88,233.4,232.92,2.88]
[1758132006381,2.88,233.4,232.97,2.88]
[1758132006583,17.12,233.34,232.93,15.43881381]
[1758132006789,2.88,233.4,233.06,2.88]
[1758132006995,2.88,233.4,233.2,2.88]
[1758132007295,17.12,233.97,233.33,2.88]
[1758132007611,17.12,233.87,233.37,2.88]
[1758132007810,17.12,233.74,233.18,2.88]
[1758132007996,15.75131122,234.21,232.91,4.2933679]
[1758132007997,17.12,234.02,233.4,2.88]
[1758132008198,17.12,233.9,233.19,5.10142656]
[1758132008507,17.12,233.74,233.33,2.88]
[1758132008809,12.90766716,234.01,233.29,2.88]
[1758132008810,17.12,233.76,233.29,2.88]
[1758132009009,5.62141902,233.78,233.42,2.81550527]
[1758132009210,12.90766716,234.01,233.52,2.81550527]
[1758132009417,12.90766716,234.01,233.47,2.81550527]
[1758132009615,17.18449473,233.9,233.42,2.81550527]
[1758132009786,12.90766716,234.01,233.26,4.28699528]
[1758132009787,12.90766716,234.01,233.48,2.81550527]
[1758132009987,12.90766716,234.01,233.69,2.81550527]
[1758132010192,17.18449473,234.25,233.69,2.81550527]
[1758132010429,17.18449473,234.34,233.85,2.81550527]
[1758132010618,12.85099274,234.05,233.83,2.81550527]
[1758132010915,12.85099274,234.05,233.91,2.81550527]
[1758132011113,12.85099274,234.05,233.77,5.98437197]
[1758132011114,38.44897743,234.57,234.08,2.81550527]
[1758132011313,17.18449473,234.64,234.16,2.81550527]
[1758132011492,39.20224912,234.64,234.17,2.81550527]
[1758132011813,19.50619507,234.89,234.17,2.81550527]
[1758132011814,12.85760206,234.56,234.22,2.81550527]
[1758132012014,12.85760206,234.56,234.25,2.81550527]
[1758132012320,12.85760206,234.56,234.32,2.81550527]
[1758132012492,12.85760206,234.56,234.42,2.81550527]
[1758132012816,0.1,234.61,234.51,2.81550527]
[1758132013001,21.12862294,235.15,234.62,2.81550527]
[1758132013199,12.82846208,234.75,234.62,2.81550527]
[1758132013406,12.82846208,234.75,234.64,2.81550527]
[1758132013616,17.18449473,235.05,234.48,2.81550527]
[1758132013908,12.57680248,235.0,234.78,2.81550527]
[1758132014103,21.12862294,235.15,234.67,2.81550527]
[1758132014104,13.02781199,235.05,234.67,2.81550527]
[1758132014299,17.18449473,235.04,234.62,12.55832919]
[1758132014516,12.80819724,235.14,234.7,2.81550527]
[1758132014812,17.18449473,235.38,234.81,2.81550527]
[1758132015013,18.34751814,235.32,234.93,2.81550527]
[1758132015315,12.80109236,235.28,235.0,2.81550527]
[1758132015499,12.80109236,235.28,235.02,2.81550527]
[1758132015699,12.80109236,235.28,235.17,2.81550527]
[1758132015898,17.18449473,235.61,235.19,2.81550527]
[1758132016097,17.18449473,235.66,235.23,2.81550527]
[1758132016293,17.18449473,235.66,235.18,6.09462278]
[1758132016294,12.79535955,235.38,235.32,2.81550527]
[1758132016520,17.18449473,235.89,235.39,2.81550527]
[1758132016690,12.77710343,235.82,235.39,2.81550527]
[1758132017009,17.18449473,235.61,235.17,2.81550527]
[1758132017206,17.18449473,235.55,235.03,5.03523903]
[1758132017506,17.18449473,235.41,235.03,2.21973376]
[1758132017820,12.77710343,235.82,235.03,2.21973376]
[1758132017821,17.18449473,235.39,235.03,2.21973376]
[1758132017997,17.18449473,235.31,235.04,9.89405642]
[1758132018201,17.18449473,235.31,234.6,81.19636577]
[1758132018202,17.18449473,235.24,234.53,2.81550527]
[1758132018406,17.18449473,235.06,235.04,9.89405642]
[1758132018599,17.18449473,235.14,235.04,9.89405642]
[1758132018811,17.18449473,235.17,234.65,2.81550527]
[1758132019120,17.18449473,235.33,234.8,2.81550527]
[1758132019323,30.72,235.64,234.72,2.81550527]
[1758132019324,17.18449473,235.16,234.72,2.81550527]
[1758132019523,21.00434082,235.92,234.89,2.81550527]
[1758132019727,17.18449473,235.6,234.94,2.81550527]
[1758132020022,0.03,235.35,235.0,2.81550527]
[1758132020321,17.18449473,235.42,235.16,0.2235]
[1758132020499,0.03,235.38,235.16,0.2235]
[1758132020703,0.03,235.38,235.16,38.11362984]
[1758132020927,0.03,235.38,235.16,0.2235]
[1758132021095,0.03,235.4,235.23,2.81550527]
[1758132021296,17.18449473,235.73,235.21,2.81550527]
[1758132021525,38.14123394,235.85,235.26,2.81550527]
[1758132021526,21.35696074,235.84,235.26,2.81550527]
[1758132021827,21.98874124,235.8,235.31,2.81550527]
[1758132022123,17.18449473,235.69,235.3,2.81550527]
[1758132022328,5.7274455,235.83,235.26,4.66336908]
[1758132022329,5.7274455,235.83,235.39,2.81550527]
[1758132022528,5.7274455,235.83,235.52,2.81550527]
[1758132022740,5.7274455,235.83,235.53,2.81550527]
[1758132022903,17.18449473,235.96,235.57,2.81550527]
[1758132023103,12.91047526,235.99,235.52,2.81550527]
[1758132023104,17.18449473,235.91,235.52,2.81550527]
[1758132023320,12.97116474,235.99,235.4,2.81550527]
[1758132023321,17.18449473,235.82,235.4,2.81550527]
[1758132023621,17.18449473,235.8,235.39,14.8689409]
[1758132023795,17.18449473,235.67,235.17,93.17739535]
[1758132023995,17.18449473,235.41,235.16,37.64045533]
[1758132024198,17.18449473,235.58,235.16,41.89285937]
[1758132024506,17.18449473,235.56,235.16,15.10696374]
[1758132024704,17.18449473,235.67,235.22,2.81550527]
[1758132024905,17.18449473,235.59,235.16,28.00847444]
[1758132025126,17.18449473,235.61,235.17,2.81550527]
[1758132025478,17.18449473,235.79,235.29,4.25007437]
[1758132025598,17.18449473,235.64,235.29,14.87526031]
[1758132025799,17.18449473,235.77,235.29,17.69076558]
[1758132026021,17.18449473,235.88,235.32,2.81550527]
[1758132026210,17.18449473,235.98,235.59,2.81550527]
[1758132026416,16.44986917,236.43,235.56,2.81550527]
[1758132026417,17.18449473,236.02,235.56,2.81550527]
[1758132026623,17.18449473,236.14,235.67,2.81550527]
[1758132026944,12.76459951,236.01,235.74,2.81550527]
[1758132027146,12.76459951,236.01,235.62,2.81550527]
[1758132027147,11.32459951,236.01,235.62,2.81550527]
[1758132027439,17.18449473,236.24,235.7,36.06279167]
[1758132027625,12.75401751,236.22,235.73,2.81550527]
[1758132027832,12.75401751,236.22,235.76,2.81550527]
[1758132028135,12.75401751,236.22,235.7,66.7027126]
[1758132028136,17.36186521,236.37,235.89,2.81550527]
[1758132028431,17.36186521,236.37,235.7,61.91367686]
[1758132028432,0.17737048,236.37,235.97,2.81550527]
[1758132028644,12.74507721,236.35,235.87,2.81550527]
[1758132028814,17.18449473,236.33,235.82,42.88467559]
[1758132029008,0.17737048,236.37,235.82,42.88467559]
[1758132029228,17.18449473,236.38,235.97,2.81550527]
[1758132029550,0.17737048,236.43,235.8,12.84230635]
[1758132029551,17.18449473,236.37,235.8,4.78903574]
[1758132029731,17.18449473,236.31,235.81,10.60175565]
[1758132029935,17.18449473,236.36,235.81,10.60175565]
[1758132030135,17.18449473,236.38,235.87,2.81550527]
[1758132030329,17.18449473,236.28,235.87,2.81550527]
[1758132030528,17.18449473,236.28,235.81,10.60175565]
[1758132030725,17.18449473,236.41,235.89,2.81550527]
[1758132030929,17.18449473,236.39,235.82,7.60454101]
[1758132031118,0.17737048,236.43,235.9,2.81550527]
[1758132031329,0.17737048,236.43,235.89,4.78903574]
[1758132031330,17.18449473,236.71,236.19,2.81550527]
[1758132031542,27.78625038,236.73,236.23,2.81550527]
[1758132031743,10.60175565,236.73,236.36,2.81550527]
[1758132031964,17.18449473,236.86,236.33,7.60454101]
[1758132032130,17.18449473,236.86,236.2,35.98645215]
[1758132032131,17.18449473,236.86,236.46,2.81550527]
[1758132032442,17.18449473,236.89,236.44,5.15472328]
[1758132032745,13.41449473,236.87,236.25,92.74639713]
[1758132032979,13.41449473,236.47,235.95,4.23818605]
[1758132033133,13.41449473,236.47,235.84,92.90763365]
[1758132033134,13.41449473,236.36,235.89,6.58550527]
[1758132033337,13.41449473,236.36,235.84,92.90763365]
[1758132033338,13.41449473,236.31,235.84,92.90763365]
[1758132033649,13.41449473,236.13,235.7,92.9628185]
[1758132033857,13.41449473,236.26,235.74,6.58550527]
[1758132034049,13.41449473,236.01,235.7,92.9628185]
[1758132034364,2.24126098,236.07,235.7,97.20544992]
[1758132034659,30.58,236.49,235.71,10.60625344]
[1758132034660,4.50572759,236.21,235.71,10.60625344]
[1758132034955,12.75005235,236.37,235.7,97.2054885]
[1758132035120,1.85996526,236.44,235.87,20.0]
[1758132035425,37.63041447,236.44,235.91,14.83616632]
[1758132035626,10.56860732,236.55,235.97,20.0]
[1758132035825,10.56860732,236.55,235.91,14.83616632]
[1758132035826,12.57317031,236.55,235.83,20.0]
[1758132036129,3.95422898,236.63,235.88,20.0]
[1758132036339,3.95422898,236.63,235.94,20.0]
[1758132036642,3.3616648,236.72,236.08,20.0]
[1758132036846,3.3616648,236.72,236.28,20.0]
[1758132037061,30.56,237.07,236.41,20.0]
[1758132037359,4.22263458,236.82,236.39,20.0]
[1758132037547,12.7139529,237.0,236.51,20.0]
[1758132037742,30.56,237.07,236.53,20.0]
[1758132038253,14.76426012,237.06,236.53,20.0]
[1758132038474,14.76426012,237.06,236.4,35.95600675]
[1758132038475,4.21834134,237.06,236.59,20.0]
[1758132038766,0.06,237.12,236.82,20.0]
[1758132038975,0.06,237.12,236.68,20.0]
[1758132039137,0.06,237.12,236.75,20.0]
[1758132039438,0.06,237.12,236.67,4.2252926]
[1758132039629,0.06,237.12,236.77,5.74358451]
[1758132039833,0.06,237.12,236.73,20.0]
[1758132040068,0.06,237.23,236.73,20.0]
[1758132040069,0.06,237.23,236.97,20.0]
[1758132040235,4.31122959,237.47,237.02,20.0]
[1758132040429,5.74358451,237.2,237.02,20.0]
[1758132040636,0.36853414,237.39,237.03,25.74358451]
[1758132040841,0.36853414,237.39,236.83,112.52429196]
[1758132040842,0.36853414,237.39,237.12,20.0]
[1758132041042,0.36853414,237.39,236.83,92.52429196]
[1758132041043,0.36853414,237.39,237.05,20.0]
[1758132041258,5.74358451,237.18,237.02,32.67080642]
[1758132041555,0.36853414,237.39,237.22,20.0]
[1758132041866,0.36853414,237.39,237.16,24.95002596]
[1758132042160,4.58111341,237.39,237.02,12.70216187]
[1758132042378,4.58111341,237.39,237.03,20.0]
[1758132042379,0.36853414,237.39,237.03,20.0]
[1758132042531,21.77241823,237.5,237.03,92.44622227]
[1758132042737,5.74358451,237.22,237.03,91.91622227]
[1758132043146,38.30262379,237.22,237.03,91.91622227]
[1758132043446,55.77667814,237.47,237.03,91.91622227]
[1758132043643,14.73932451,237.46,237.03,91.91622227]
[1758132043847,27.11135204,237.46,237.03,91.91622227]
[1758132044044,52.11076111,237.46,237.03,91.91622227]
[1758132044249,5.74358451,237.04,237.03,91.91622227]
[1758132044459,5.74358451,237.22,237.03,91.91622227]
[1758132044653,11.48716902,237.04,236.79,92.00938454]
[1758132044849,11.48716902,237.04,236.36,21.68585253]
[1758132044850,0.89090562,237.21,236.62,12.96214524]
[1758132045049,0.89090562,237.21,236.53,25.80911019]
[1758132045050,31.20358618,237.22,236.63,6.03703785]
[1758132045263,5.74358451,236.89,236.63,86.87323337]
[1758132045462,30.46,237.17,236.63,80.83619552]
[1758132045663,5.74358451,236.67,236.53,6.03703785]
[1758132045858,5.74358451,236.69,236.62,80.72833878]
[1758132046060,4.21656265,237.16,236.62,80.72833878]
[1758132046367,53.03610875,237.16,236.62,80.72833878]
[1758132046567,14.75796929,237.16,236.62,80.72833878]
[1758132046950,14.75796929,237.16,236.62,100.72833878]
[1758132047146,5.74358451,236.93,236.62,80.72833878]
[1758132047447,5.74358451,236.63,236.62,80.72833878]
[1758132047668,14.77291912,236.92,236.21,20.0]
[1758132047873,3.95422898,236.91,236.23,20.0]
[1758132048047,5.74358451,236.64,236.23,20.0]
[1758132048247,5.74358451,236.64,236.24,61.69165354]
[1758132048446,5.74358451,236.64,236.24,74.11359597]
[1758132048447,12.65084152,236.64,236.24,74.11359597]
[1758132048666,5.74358451,236.64,236.24,61.69165354]
[1758132048952,5.74358451,236.35,236.08,61.73346422]
[1758132049169,9.01194648,236.63,236.08,61.73346422]
[1758132049372,21.78615552,237.1,236.23,20.0]
[1758132049573,21.78615552,237.1,236.25,20.0]
[1758132049887,5.74358451,237.22,236.65,2.21074306]
[1758132050089,5.73708318,237.51,236.8,20.0]
[1758132050387,5.73708318,237.51,236.67,23.71050252]
[1758132050388,6.15752125,237.51,236.84,20.0]
[1758132050549,5.73708318,237.51,236.94,20.0]
[1758132050750,35.78498203,237.53,236.99,20.0]
[1758132050973,61.48472723,237.53,236.98,20.0]
[1758132051152,5.73708318,237.51,236.98,20.0]
[1758132051454,5.73708318,237.51,236.98,4.21976538]
[1758132051755,5.73708318,237.51,236.87,9.15262153]
[1758132051756,3.38706247,237.51,236.99,20.0]
[1758132052080,0.02160406,237.55,236.91,14.77340065]
[1758132052081,0.02160406,237.55,237.21,20.0]
[1758132052266,2.30834146,237.54,237.25,20.0]
[1758132052579,2.30834146,237.54,237.26,9.11262153]
[1758132052767,2.30834146,237.54,237.25,20.0]
[1758132053079,6.51819414,237.54,237.13,61.51120663]
[1758132053379,2.30834146,237.54,237.14,81.50861275]
[1758132053584,2.30834146,237.54,237.2,20.0]
[1758132053754,2.30834146,237.54,237.17,20.0]
[1758132054072,2.30834146,237.54,237.17,25.26032988]
[1758132054277,4.20999452,237.53,237.14,76.26776156]
[1758132054474,5.73708318,237.51,237.14,61.50861275]
[1758132055565,14.73684209,237.5,237.14,61.50861275]
[1758132056082,5.73708318,237.15,237.14,61.50861275]
[1758132056673,5.73708318,237.15,236.77,3.3526734]
[1758132056954,5.73708318,237.22,236.66,20.0]
[1758132057155,5.73708318,236.93,236.73,68.77357403]
[1758132057353,5.73708318,236.74,236.73,68.77357403]
[1758132057578,4.77939861,237.21,236.73,2.45286378]
[1758132057756,4.77939861,237.21,236.36,3.33441191]
[1758132057757,11.47416636,236.74,236.36,3.33441191]
[1758132057960,5.73708318,236.59,236.38,20.0]
[1758132058160,5.73708318,236.64,236.37,27.84380843]
[1758132058472,5.73708318,236.64,236.39,22.05048071]
[1758132058677,5.73708318,236.93,236.39,22.05048071]
[1758132058853,22.94833272,236.93,236.39,22.05048071]
[1758132059058,5.73708318,236.93,236.39,22.05048071]
[1758132059266,5.73708318,236.64,236.39,22.05048071]
[1758132059471,5.73708318,236.4,236.39,22.05048071]
[1758132059676,5.73708318,236.64,236.39,22.05048071]
[1758132059854,35.92105818,236.63,236.39,22.05048071]
[1758132060051,4.22600684,236.63,236.39,22.05048071]
[1758132060279,5.73708318,236.43,236.39,22.05048071]
[1758132060463,11.47416636,236.4,236.23,0.03]
[1758132060655,5.73708318,236.24,236.23,0.03]
[1758132060861,35.92105818,236.63,236.23,0.03]
[1758132061177,35.92105818,236.63,235.89,20.0]
[1758132061477,5.73708318,236.35,235.9,20.0]
[1758132061678,5.73708318,236.35,234.9,30.42]